bitfinex/quotes_SOLUSD_20250525
["timestamp","ask_amount","ask_price","bid_price","bid_amount"]
[1748145280616,12.41296963,173.65,173.6,125.26170412]
[1748145281106,8.28170412,173.64,173.6,116.98]
[1748145286317,8.28170412,173.64,173.6,34.48]
[1748145287529,8.28170412,173.64,173.61,119.46]
[1748145287690,8.28170412,173.63,173.61,119.46]
[1748145288386,8.28170412,173.63,173.62,34.48]
[1748145290818,12.41296963,173.63,173.62,34.48]
[1748145291922,4.13126551,173.63,173.62,34.48]
[1748145292596,12.41296963,173.64,173.62,34.48]
[1748145294102,4.13126551,173.64,173.62,34.48]
[1748145294614,12.41296963,173.65,173.62,34.48]
[1748145294914,4.13126551,173.65,173.62,34.48]
[1748145295217,12.41296963,173.65,173.62,34.48]
[1748145297515,12.41296963,173.65,173.63,119.46]
[1748145297719,8.28170412,173.64,173.63,119.46]
[1748145298922,12.41296963,173.65,173.63,119.46]
[1748145299122,4.13126551,173.64,173.63,119.46]
[1748145299299,4.13126551,173.64,173.63,36.72]
[1748145299715,4.13126551,173.64,173.62,34.48]
[1748145301132,12.41296963,173.64,173.62,34.48]
[1748145301349,8.28170412,173.64,173.62,34.48]
[1748145301504,8.28170412,173.63,173.58,8.28170412]
[1748145301709,8.28170412,173.63,173.59,34.48]
[1748145302211,8.28170412,173.64,173.59,42.76170412]
[1748145303528,18.64964886,173.61,173.6,34.48]
[1748145303835,26.93135298,173.61,173.6,34.48]
[1748145304209,18.64964886,173.61,173.6,34.48]
[1748145304409,8.28170412,173.61,173.6,34.48]
[1748145304921,12.41296963,173.61,173.6,34.48]
[1748145305132,4.13126551,173.61,173.6,34.48]
[1748145306748,4.13126551,173.62,173.57,8.28170412]
[1748145306950,4.13126551,173.62,173.6,34.48]
[1748145307738,4.13126551,173.62,173.61,119.44]
[1748145309035,12.41296963,173.63,173.61,119.44]
[1748145310221,8.28170412,173.62,173.61,119.44]
[1748145311538,4.13126551,173.63,173.61,119.44]
[1748145311742,8.28170412,173.62,173.61,36.7]
[1748145311947,8.28170412,173.62,173.6,34.48]
[1748145312127,8.28170412,173.61,173.6,34.48]
[1748145312651,4.13126551,173.63,173.6,34.48]
[1748145312831,8.28170412,173.62,173.6,34.48]
[1748145313125,12.41296963,173.62,173.6,34.48]
[1748145313739,4.13126551,173.62,173.6,34.48]
[1748145314130,12.41296963,173.62,173.6,34.48]
[1748145314329,4.13126551,173.62,173.6,34.48]
[1748145314547,12.41296963,173.62,173.6,34.48]
[1748145314837,8.28170412,173.62,173.6,34.48]
[1748145315040,8.28170412,173.61,173.6,34.48]
[1748145315248,8.28170412,173.62,173.6,34.48]
[1748145315740,4.13126551,173.63,173.6,34.48]
[1748145315949,8.28170412,173.62,173.6,34.48]
[1748145317725,8.28170412,173.62,173.61,119.46]
[1748145318366,4.13126551,173.63,173.61,119.46]
[1748145318642,8.28170412,173.62,173.61,36.72]
[1748145319127,12.41296963,173.63,173.61,36.72]
[1748145319622,4.13126551,173.63,173.61,36.72]
[1748145319951,12.41296963,173.63,173.6,34.48]
[1748145320354,4.13126551,173.63,173.6,42.76170412]
[1748145322323,4.13126551,173.63,173.6,34.48]
[1748145322538,12.41296963,173.63,173.6,34.48]
[1748145322955,8.28170412,173.63,173.6,34.48]
[1748145323138,8.28170412,173.61,173.6,34.48]
[1748145327560,26.93135298,173.61,173.6,153.92]
[1748145327738,26.93135298,173.61,173.6,119.44]
[1748145327944,26.93135298,173.61,173.6,153.92]
[1748145328748,31.06261849,173.61,173.6,71.18]
[1748145330139,4.13126551,173.61,173.6,34.48]
[1748145330759,4.13126551,173.63,173.6,34.48]
[1748145331657,4.13126551,173.63,173.6,42.76170412]
[1748145331833,4.13126551,173.63,173.6,34.48]
[1748145332034,12.41296963,173.64,173.6,34.48]
[1748145332756,4.13126551,173.64,173.6,34.48]
[1748145332947,4.13126551,173.64,173.6,42.76170412]
[1748145333559,4.13126551,173.64,173.6,34.48]
[1748145334143,17.07294673,173.66,173.6,34.48]
[1748145334565,12.94168122,173.65,173.6,34.48]
[1748145334861,4.13126551,173.66,173.6,34.48]
[1748145336155,17.07294673,173.66,173.6,34.48]
[1748145336465,17.07294673,173.66,173.6,116.98]
[1748145337167,4.13126551,173.66,173.6,116.98]
[1748145337561,4.13126551,173.66,173.61,119.42]
[1748145338381,4.13126551,173.66,173.61,227.92]
[1748145338772,17.07294673,173.66,173.59,90.3007]
[1748145339072,12.94168122,173.65,173.6,34.48]
[1748145339957,4.13126551,173.66,173.6,34.48]
[1748145340160,12.94168122,173.65,173.6,34.48]
[1748145341051,12.94168122,173.66,173.6,34.48]
[1748145341567,4.13126551,173.67,173.6,34.48]
[1748145341868,17.07294673,173.67,173.6,34.48]
[1748145342172,4.13126551,173.67,173.6,34.48]
[1748145342471,17.07294673,173.67,173.6,34.48]
[1748145342659,4.13126551,173.67,173.6,34.48]
[1748145342860,17.07294673,173.67,173.6,34.48]
[1748145343175,4.13126551,173.67,173.6,34.48]
[1748145343383,17.07294673,173.67,173.6,34.48]
[1748145343578,4.13126551,173.67,173.6,34.48]
[1748145343762,17.07294673,173.67,173.6,34.48]
[1748145344064,12.94168122,173.67,173.6,34.48]
[1748145344775,4.13126551,173.68,173.6,34.48]
[1748145346263,12.94168122,173.7,173.6,34.48]
[1748145346874,12.94168122,173.69,173.6,34.48]
[1748145347571,22.78091437,173.71,173.61,145.4]
[1748145347779,12.94168122,173.69,173.61,62.68]
[1748145348461,18.64964886,173.71,173.61,62.68]
[1748145348655,12.94168122,173.7,173.61,26.0]
[1748145349263,38.94168122,173.7,173.6,34.48]
[1748145354375,12.94168122,173.68,173.61,34.46]
[1748145354574,12.94168122,173.69,173.61,34.46]
[1748145356482,18.64964886,173.69,173.61,34.46]
[1748145356783,31.59133008,173.69,173.61,34.46]
[1748145357085,31.59133008,173.69,173.61,116.96]
[1748145357470,31.59133008,173.69,173.62,119.4]
[1748145357780,12.94168122,173.69,173.62,119.4]
[1748145359985,12.94168122,173.69,173.62,36.68]
[1748145360292,12.94168122,173.69,173.61,116.96]
[1748145361783,34.27859722,173.7,173.61,116.96]
[1748145361983,8.27859722,173.67,173.61,82.5]
[1748145362167,8.27859722,173.67,173.62,34.46]
[1748145362577,8.27859722,173.67,173.61,82.5]
[1748145362782,8.27859722,173.67,173.63,34.46]
[1748145364565,8.27859722,173.66,173.63,34.46]
[1748145365693,12.94068447,173.66,173.63,34.46]
[1748145367491,12.94068447,173.66,173.64,119.38]
[1748145368787,12.94068447,173.65,173.64,36.66]
[1748145368980,31.59033333,173.65,173.64,34.46]
[1748145370400,44.64964886,173.64,173.55,82.5]
[1748145370568,12.94068447,173.59,173.56,34.46]
[1748145371392,12.94068447,173.59,173.57,34.46]
[1748145371690,12.94068447,173.6,173.57,34.46]
[1748145372587,12.94068447,173.61,173.57,34.46]
[1748145372778,38.94068447,173.61,173.57,34.46]
[1748145373292,12.94068447,173.61,173.57,34.46]
[1748145373493,12.94068447,173.63,173.57,34.46]
[1748145377496,12.94068447,173.63,173.58,119.4]
[1748145379389,12.94068447,173.62,173.58,119.4]
[1748145380012,12.94068447,173.62,173.58,36.66]
[1748145381388,12.94068447,173.62,173.59,34.48]
[1748145381588,12.94068447,173.62,173.6,34.48]
[1748145385114,18.64964886,173.63,173.6,34.48]
[1748145385413,12.94068447,173.62,173.6,34.48]
[1748145385951,12.94068447,173.61,173.6,34.48]
[1748145387598,12.94068447,173.61,173.6,153.88]
[1748145390128,12.94068447,173.61,173.6,34.48]
[1748145390326,31.59033333,173.61,173.52,87.09524342]
[1748145390516,12.94068447,173.59,173.53,34.48]
[1748145390704,12.94068447,173.6,173.53,34.48]
[1748145395330,12.94068447,173.6,173.53,116.98]
[1748145395816,8.28728165,173.6,173.53,116.98]
[1748145397632,8.28728165,173.6,173.54,119.4]
[1748145398950,8.28728165,173.59,173.54,119.4]
[1748145399127,8.28728165,173.59,173.54,36.66]
[1748145399128,8.28728165,173.55,173.54,36.66]
[1748145399439,8.28728165,173.55,173.54,34.48]
[1748145400121,34.28728165,173.57,173.54,34.48]
[1748145401919,8.28728165,173.56,173.54,34.48]
[1748145402442,34.28728165,173.57,173.54,34.48]
[1748145403140,8.28728165,173.56,173.54,34.48]
[1748145403446,8.28728165,173.55,173.47,90.3688]
[1748145403617,8.28728165,173.54,173.48,34.48]
[1748145404451,8.28728165,173.49,173.41,7.8498]
[1748145404631,8.28728165,173.51,173.42,34.48]
[1748145405618,12.96291448,173.51,173.42,34.48]
[1748145407616,12.96291448,173.51,173.43,119.44]
[1748145409747,12.96291448,173.51,173.43,145.44]
[1748145410114,12.96291448,173.51,173.43,227.94]
[1748145410322,12.96291448,173.5,173.43,227.94]
[1748145411751,12.96291448,173.5,173.43,145.16]
[1748145413151,12.96291448,173.49,173.44,34.5]
[1748145413469,12.96291448,173.48,173.44,117.0]
[1748145414255,12.96291448,173.48,173.44,82.5]
[1748145414557,12.96291448,173.48,173.45,34.5]
[1748145414755,12.96291448,173.46,173.44,82.5]
[1748145415048,12.96291448,173.46,173.45,34.5]
[1748145417429,12.96291448,173.46,173.38,26.0]
[1748145417659,46.19324886,173.49,173.45,82.8]
[1748145417830,18.64964886,173.45,173.38,26.0]
[1748145418025,12.96291448,173.43,173.38,26.0]
[1748145418258,12.96291448,173.42,173.39,34.5]
[1748145419332,12.96291448,173.41,173.39,34.5]
[1748145420047,12.96291448,173.42,173.39,34.5]
[1748145420561,12.96291448,173.42,173.4,34.5]
[1748145421338,12.96291448,173.41,173.33,90.4566]
[1748145421537,12.96291448,173.4,173.34,34.5]
[1748145421939,31.61256334,173.44,173.34,34.5]
[1748145422159,12.96291448,173.41,173.34,34.5]
[1748145422867,12.96291448,173.4,173.34,34.5]
[1748145423066,12.96291448,173.39,173.33,116.4566]
[1748145423276,12.96291448,173.38,173.34,34.52]
[1748145423568,12.96291448,173.42,173.34,34.52]
[1748145423864,12.96291448,173.41,173.34,34.52]
[1748145425958,12.96291448,173.38,173.33,116.4566]
[1748145426163,12.96291448,173.38,173.35,34.52]
[1748145426367,12.96291448,173.38,173.33,90.4566]
[1748145426544,12.96291448,173.38,173.36,34.52]
[1748145427070,0.14216157,173.43,173.36,34.52]
[1748145427071,12.96291448,173.37,173.36,34.52]
[1748145427446,12.96291448,173.37,173.36,154.0]
[1748145428369,1.5158,173.47,173.36,154.0]
[1748145428673,12.96291448,173.41,173.36,34.52]
[1748145428975,12.96291448,173.4,173.36,34.52]
[1748145429459,12.96291448,173.39,173.36,34.52]
[1748145429884,12.96291448,173.38,173.36,34.52]
[1748145430378,12.96291448,173.39,173.36,34.52]
[1748145432675,12.96291448,173.38,173.36,34.52]
[1748145433270,12.96291448,173.37,173.36,34.52]
[1748145433460,12.96291448,173.38,173.36,34.52]
[1748145435279,12.96291448,173.38,173.31,26.0]
[1748145435450,12.96291448,173.38,173.32,34.52]
[1748145435762,12.96291448,173.36,173.31,26.0]
[1748145436070,18.79181043,173.41,173.29,8.07]
[1748145436071,12.96291448,173.34,173.32,34.52]
[1748145437166,12.96291448,173.33,173.32,34.52]
[1748145437470,12.96291448,173.33,173.32,154.04]
[1748145438276,1.5067,173.36,173.32,71.2]
[1748145438575,12.96291448,173.33,173.32,34.52]
[1748145438773,26.0,173.35,173.32,34.52]
[1748145439081,12.96291448,173.33,173.32,34.52]
[1748145446784,18.79181043,173.32,173.2,82.5]
[1748145446959,12.96291448,173.28,173.21,34.54]
[1748145447467,12.96291448,173.29,173.22,119.56]
[1748145447674,12.96291448,173.3,173.22,119.56]
[1748145448183,12.96291448,173.29,173.23,26.0]
[1748145451868,12.96291448,173.28,173.22,82.5]
[1748145452191,12.96291448,173.25,173.18,8.1722]
[1748145452395,12.96291448,173.25,173.23,34.54]
[1748145452777,12.96291448,173.26,173.23,34.54]
[1748145452980,12.96291448,173.25,173.24,34.54]
[1748145454388,44.64964886,173.3,173.24,34.54]
[1748145454389,12.96291448,173.27,173.24,34.54]
[1748145455493,12.96291448,173.26,173.24,34.54]
[1748145456999,12.96291448,173.26,173.18,34.1722]
[1748145457377,12.96291448,173.26,173.19,34.54]
[1748145457583,12.96291448,173.26,173.2,119.58]
[1748145459098,12.96291448,173.24,173.2,36.68]
[1748145459274,12.96291448,173.24,173.21,34.54]
[1748145460580,12.96291448,173.23,173.22,34.54]
[1748145461487,12.96291448,173.24,173.22,34.54]
[1748145461704,12.96291448,173.28,173.22,34.54]
[1748145461883,18.79181043,173.29,173.22,34.54]
[1748145461884,4.13126551,173.32,173.22,34.54]
[1748145462087,12.96291448,173.27,173.22,34.54]
[1748145462384,12.96291448,173.25,173.22,34.54]
[1748145462590,12.96291448,173.24,173.23,34.54]
[1748145463510,12.96291448,173.24,173.15,82.5]
[1748145463698,12.96291448,173.21,173.16,34.54]
[1748145464298,18.79181043,173.26,173.16,34.54]
[1748145464487,12.96291448,173.23,173.16,34.54]
[1748145465489,12.96291448,173.25,173.16,34.54]
[1748145465688,12.96291448,173.25,173.17,26.0]
[1748145466292,12.96291448,173.26,173.17,26.0]
[1748145467593,12.96291448,173.26,173.18,119.6]
[1748145469214,12.96291448,173.24,173.18,36.68]
[1748145469420,12.96291448,173.23,173.19,34.56]
[1748145472497,12.96291448,173.24,173.19,34.56]
[1748145472698,12.96291448,173.25,173.19,34.56]
[1748145473416,26.0,173.29,173.19,34.56]
[1748145473794,12.96291448,173.25,173.19,34.56]
[1748145477525,12.96291448,173.25,173.2,119.6]
[1748145479827,12.96291448,173.25,173.2,36.68]
[1748145480737,12.96291448,173.26,173.2,36.68]
[1748145481831,12.96291448,173.26,173.19,34.56]
[1748145486318,4.13126551,173.29,173.2,7.6979]
[1748145486524,4.13126551,173.29,173.2,90.1979]
[1748145487208,4.13126551,173.29,173.21,18.64964886]
[1748145487634,4.13126551,173.29,173.22,119.58]
[1748145488120,4.13126551,173.29,173.22,36.66]
[1748145488839,26.0,173.3,173.22,41.33938671]
[1748145489137,26.0,173.3,173.22,4.67938671]
[1748145489347,26.0,173.3,173.21,18.64964886]
[1748145489511,12.96291448,173.32,173.21,18.64964886]
[1748145489915,26.0,173.31,173.21,23.35859056]
[1748145490938,26.0,173.31,173.22,34.56]
[1748145491147,12.96291448,173.31,173.22,34.56]
[1748145492543,12.96291448,173.31,173.22,117.06]
[1748145493241,26.0,173.26,173.23,34.54]
[1748145493560,26.0,173.24,173.23,82.5]
[1748145493751,26.0,173.24,173.23,117.04]
[1748145494624,26.0,173.24,173.23,34.54]
[1748145496324,12.96291448,173.26,173.23,34.54]
[1748145497551,12.96291448,173.26,173.24,119.56]
[1748145498221,38.96291448,173.27,173.24,119.56]
[1748145500637,12.96291448,173.26,173.24,119.56]
[1748145501045,26.0,173.27,173.24,119.56]
[1748145501246,12.96291448,173.26,173.24,119.56]
[1748145501931,26.0,173.22,173.2,82.5]
[1748145502132,26.0,173.22,173.16,90.2862]
[1748145502322,26.0,173.22,173.17,34.54]
[1748145502656,12.96291448,173.25,173.17,34.54]
[1748145502832,26.0,173.22,173.17,34.54]
[1748145504153,26.0,173.22,173.18,34.56]
[1748145505360,26.0,173.21,173.18,34.56]
[1748145506363,38.96291448,173.25,173.18,34.56]
[1748145506655,26.0,173.21,173.19,34.56]
[1748145507341,12.96291448,173.25,173.19,117.06]
[1748145507645,12.96291448,173.25,173.2,119.58]
[1748145508038,17.09417999,173.27,173.2,36.66]
[1748145508268,26.0,173.24,173.2,36.66]
[1748145508475,26.0,173.24,173.19,117.06]
[1748145508634,26.0,173.23,173.19,117.06]
[1748145511665,26.0,173.27,173.19,117.06]
[1748145511970,26.0,173.23,173.19,117.06]
[1748145515938,26.0,173.22,173.19,82.5]
[1748145516137,26.0,173.22,173.2,34.56]
[1748145517465,26.0,173.22,173.21,119.56]
[1748145521356,26.0,173.27,173.2,34.56]
[1748145521550,26.0,173.23,173.2,34.56]
[1748145524977,26.0,173.23,173.2,117.06]
[1748145526180,26.0,173.22,173.2,117.06]
[1748145527479,26.0,173.22,173.21,119.56]
[1748145529682,26.0,173.22,173.2,117.06]
[1748145530684,26.0,173.23,173.2,117.06]
[1748145531861,26.0,173.22,173.2,117.06]
[1748145533165,26.0,173.21,173.2,117.06]
[1748145533372,26.0,173.21,173.2,34.56]
[1748145533681,26.0,173.21,173.16,90.2862]
[1748145533864,26.0,173.2,173.17,34.56]
[1748145535287,26.0,173.21,173.17,34.56]
[1748145536673,34.32059721,173.24,173.17,34.56]
[1748145537492,34.32059721,173.24,173.18,119.56]
[1748145538995,26.0,173.2,173.18,119.56]
[1748145539290,26.0,173.2,173.18,36.64]
[1748145539797,26.0,173.2,173.18,119.14]
[1748145541198,8.32059721,173.23,173.18,119.14]
[1748145541398,26.0,173.2,173.18,82.5]
[1748145546395,26.0,173.19,173.18,82.5]
[1748145546698,26.0,173.19,173.18,117.06]
[1748145547587,26.0,173.19,173.18,236.64]
[1748145547788,26.0,173.19,173.18,202.08]
[1748145548090,26.0,173.19,173.18,236.64]
[1748145549102,26.0,173.2,173.18,153.72]
[1748145549289,26.0,173.2,173.18,119.16]
[1748145549494,4.13126551,173.23,173.19,34.56]
[1748145549495,26.0,173.21,173.19,34.56]
[1748145549804,26.0,173.2,173.19,34.56]
[1748145551001,34.32059721,173.22,173.19,34.56]
[1748145553214,26.0,173.2,173.19,34.56]
[1748145555013,26.0,173.21,173.19,34.56]
[1748145557414,26.0,173.21,173.19,117.06]
[1748145557611,26.0,173.21,173.2,119.58]
[1748145559845,26.0,173.22,173.2,119.58]
[1748145560019,26.0,173.22,173.2,36.64]
[1748145562250,26.0,173.22,173.19,117.06]
[1748145567547,26.0,173.22,173.2,119.54]
[1748145569245,26.0,173.22,173.2,202.04]
[1748145570233,26.0,173.22,173.2,82.5]
[1748145572538,26.0,173.22,173.21,34.56]
[1748145573853,34.32059721,173.22,173.21,34.56]
[1748145575561,34.32059721,173.22,173.13,82.5]
[1748145575746,34.32059721,173.22,173.14,34.56]
[1748145577565,34.32059721,173.22,173.15,119.54]
[1748145577746,26.0,173.22,173.15,119.54]
[1748145578145,26.0,173.21,173.15,36.62]
[1748145578551,26.0,173.21,173.14,34.56]
[1748145581066,26.0,173.21,173.14,117.06]
[1748145583055,26.0,173.21,173.14,137.06]
[1748145587480,26.0,173.21,173.15,119.52]
[1748145591287,26.0,173.21,173.14,137.06]
[1748145592288,12.45186272,173.24,173.14,137.06]
[1748145592289,4.13126551,173.24,173.15,26.78164886]
[1748145592464,4.13126551,173.24,173.17,36.78164886]
[1748145592671,4.13126551,173.24,173.19,18.64964886]
[1748145592873,4.13126551,173.24,173.21,18.64964886]
[1748145593067,4.13126551,173.24,173.21,101.14964886]
[1748145594168,34.32059721,173.31,173.21,101.14964886]
[1748145595691,38.99197105,173.31,173.21,101.14964886]
[1748145597500,38.99197105,173.31,173.22,119.52]
[1748145598806,38.99197105,173.31,173.22,202.02]
[1748145599782,12.99197105,173.3,173.22,202.02]
[1748145602787,12.99197105,173.3,173.22,82.5]
[1748145606794,12.99197105,173.3,173.23,34.54]
[1748145607412,26.0,173.28,173.23,34.54]
[1748145607606,26.0,173.28,173.24,119.48]
[1748145607902,26.0,173.28,173.24,154.02]
[1748145608502,12.99197105,173.27,173.24,119.48]
[1748145608810,38.99197105,173.25,173.15,82.5]
[1748145608987,12.99197105,173.23,173.16,34.54]
[1748145609304,12.99197105,173.23,173.16,117.04]
[1748145609683,38.99197105,173.22,173.14,102.5]
[1748145609885,38.99197105,173.22,173.15,34.54]
[1748145611011,26.0,173.24,173.15,34.54]
[1748145611218,26.0,173.2,173.15,34.54]
[1748145613883,12.99197105,173.24,173.15,34.54]
[1748145614104,12.99197105,173.28,173.16,18.64964886]
[1748145614307,26.0,173.25,173.16,101.14964886]
[1748145614610,26.0,173.24,173.16,101.14964886]
[1748145614812,26.0,173.23,173.16,101.14964886]
[1748145615696,26.0,173.24,173.16,101.14964886]
[1748145617411,26.0,173.23,173.16,101.14964886]
[1748145617711,26.0,173.23,173.17,119.48]
[1748145619335,26.0,173.23,173.17,201.98]
[1748145619516,26.0,173.23,173.17,82.5]
[1748145620110,26.0,173.24,173.17,82.5]
[1748145623628,8.31901246,173.27,173.17,82.5]
[1748145623933,26.0,173.24,173.17,82.5]
[1748145625631,26.0,173.23,173.17,82.5]
[1748145627129,8.31901246,173.23,173.17,82.5]
[1748145627314,26.0,173.2,173.18,34.56]
[1748145627509,26.0,173.2,173.19,119.48]
[1748145627822,13.00426512,173.22,173.19,154.04]
[1748145628028,13.00426512,173.22,173.19,71.12]
[1748145628232,13.00426512,173.22,173.19,34.56]
[1748145629331,13.00426512,173.22,173.18,82.5]
[1748145629529,13.00426512,173.22,173.2,34.56]
[1748145629735,26.0,173.19,173.18,82.5]
[1748145629939,26.0,173.17,173.13,90.3331]
[1748145630239,26.0,173.17,173.14,34.56]
[1748145630625,26.0,173.17,173.15,34.56]
[1748145630937,26.0,173.16,173.13,82.5]
[1748145631124,26.0,173.16,173.14,34.56]
[1748145631326,26.0,173.15,173.14,34.56]
[1748145633017,26.0,173.12,173.02,82.5]
[1748145633236,18.64964886,173.17,173.03,34.56]
[1748145633237,26.0,173.11,173.03,34.56]
[1748145633432,26.0,173.11,173.03,117.06]
[1748145633615,26.0,173.15,173.03,255.87730711]
[1748145633823,26.0,173.14,173.04,26.30474886]
[1748145634219,4.12534532,173.17,173.04,26.30474886]
[1748145634220,39.00426512,173.15,173.04,26.30474886]
[1748145634541,26.0,173.15,173.04,26.30474886]
[1748145634740,26.0,173.15,173.05,0.14216157]
[1748145635745,39.00426512,173.17,173.05,0.14216157]
[1748145636141,26.0,173.13,173.05,0.14216157]
[1748145636948,26.0,173.13,173.06,18.64964886]
[1748145637653,26.0,173.13,173.07,119.5]
[1748145637856,26.0,173.13,173.08,34.56]
[1748145640653,26.0,173.12,173.09,34.56]
[1748145641645,26.0,173.13,173.09,34.56]
[1748145642149,26.0,173.12,173.09,34.56]
[1748145642353,26.0,173.11,173.09,34.56]
[1748145642853,13.00426512,173.13,173.1,34.56]
[1748145643164,26.0,173.11,173.1,34.56]
[1748145643349,13.00426512,173.12,173.1,34.56]
[1748145643655,26.0,173.09,172.99,82.5]
[1748145643858,26.0,173.06,173.0,34.56]
[1748145644983,13.00426512,173.08,173.0,34.56]
[1748145645836,13.00426512,173.08,172.99,82.5]
[1748145646146,13.00426512,173.08,173.01,34.56]
[1748145646344,26.0,173.04,173.01,34.56]
[1748145647058,26.0,173.04,172.99,82.5]
[1748145647263,26.0,173.04,173.02,34.56]
[1748145647435,26.0,173.05,173.03,82.96]
[1748145647639,26.0,173.04,173.03,119.5]
[1748145648360,26.0,173.04,173.02,34.56]
[1748145648976,1.6362,173.1,173.02,34.56]
[1748145648977,26.0,173.05,173.02,34.56]
[1748145650996,26.0,173.04,173.02,34.56]
[1748145651783,39.00426512,173.09,173.02,117.06]
[1748145652293,26.0,173.05,173.02,117.06]
[1748145652595,26.0,173.05,173.02,82.5]
[1748145652767,26.0,173.05,173.03,34.58]
[1748145655795,26.0,173.07,173.02,82.0]
[1748145656193,39.00426512,173.09,173.02,82.0]
[1748145656788,39.00426512,173.09,173.03,34.58]
[1748145657487,39.00426512,173.09,173.04,119.56]
[1748145658090,26.0,173.05,173.04,119.56]
[1748145658787,26.0,173.05,173.04,71.14]
[1748145659584,13.00426512,173.05,173.04,34.58]
[1748145660390,13.00426512,173.05,172.98,82.0]
[1748145660705,13.00426512,173.05,172.99,34.58]
[1748145661002,13.00426512,173.05,172.98,82.0]
[1748145661182,20.42801043,173.1,172.98,82.0]
[1748145661183,26.0,173.01,172.98,82.0]
[1748145661379,26.0,173.01,172.96,82.0]
[1748145661608,26.0,173.0,172.99,34.58]
[1748145662500,26.0,173.09,172.99,34.58]
[1748145662691,26.0,173.07,172.99,117.08]
[1748145663815,26.0,173.05,172.99,117.08]
[1748145664431,39.00426512,173.09,172.99,117.08]
[1748145667613,39.00426512,173.09,173.0,119.56]
[1748145668507,26.0,173.09,173.0,127.3737]
[1748145668713,26.0,173.07,173.0,127.3737]
[1748145669530,26.0,173.06,173.0,209.8737]
[1748145671102,26.0,173.06,173.0,126.8737]
[1748145673114,26.0,173.06,173.0,90.3137]
[1748145676029,26.0,173.09,173.0,90.3137]
[1748145676201,26.0,173.08,173.0,90.3137]
[1748145677529,26.0,173.08,173.01,119.56]
[1748145678628,26.0,173.08,173.01,36.56]
[1748145679523,39.00426512,173.12,173.01,18.64964886]
[1748145680031,26.0,173.08,173.01,18.64964886]
[1748145681217,26.0,173.08,173.01,101.14964886]
[1748145681423,26.0,173.06,173.01,82.5]
[1748145682231,26.0,173.11,173.01,82.5]
[1748145682435,26.0,173.07,173.01,82.5]
[1748145684241,26.0,173.11,173.01,82.5]
[1748145684445,13.00426512,173.11,173.01,82.5]
[1748145685127,26.0,173.08,173.01,82.5]
[1748145687527,26.0,173.08,173.02,119.54]
[1748145687727,26.0,173.08,173.03,34.58]
[1748145688124,26.0,173.11,173.03,34.58]
[1748145688324,26.0,173.09,173.03,34.58]
[1748145689052,26.0,173.1,173.03,34.58]
[1748145689346,26.0,173.09,173.03,34.58]
[1748145690058,26.0,173.09,173.03,117.08]
[1748145692749,39.00426512,173.11,173.03,117.08]
[1748145692931,13.00426512,173.1,173.03,117.08]
[1748145696863,13.00426512,173.1,173.03,82.5]
[1748145697048,13.00426512,173.1,173.04,34.58]
[1748145697433,13.00426512,173.1,173.05,83.0]
[1748145697635,13.00426512,173.1,173.05,202.04]